[Event "Late-Titled-Tuesday-Blitz-February-06-2024"]
[Site "Chess.com"]
[Date "2024.02.06"]
[Round "3"]
[White "Dedic8"]
[Black "JoakimVonAnd"]
[Result "0-1"]
[WhiteElo "2883"]
[BlackElo "2656"]
[TimeControl "180+1"]
[EndTime "14:30:17 PST"]
[Termination "JoakimVonAnd won by resignation"]

1. d4 {[%clk 0:02:59.5]} 1... d5 {[%clk 0:02:59.1]} 2. c4 {[%clk 0:02:59.9]}
2... e6 {[%clk 0:02:59.4]} 3. Nc3 {[%clk 0:02:59.9]} 3... c5 {[%clk 0:03:00]} 4.
cxd5 {[%clk 0:02:59.4]} 4... exd5 {[%clk 0:03:00.9]} 5. dxc5 {[%clk 0:02:59.9]}
5... d4 {[%clk 0:02:58.7]} 6. Na4 {[%clk 0:03:00.1]} 6... b5 {[%clk 0:02:58.9]}
7. cxb6 {[%clk 0:02:59.8]} 7... axb6 {[%clk 0:02:59.5]} 8. b3 {[%clk 0:02:55.6]}
8... b5 {[%clk 0:02:56.6]} 9. Nb2 {[%clk 0:02:55.3]} 9... Bb4+ {[%clk
0:02:53.6]} 10. Bd2 {[%clk 0:02:55.4]} 10... Bc3 {[%clk 0:02:54.2]} 11. Qc2
{[%clk 0:02:06.7]} 11... Nf6 {[%clk 0:02:20.8]} 12. Bxc3 {[%clk 0:01:59.5]}
12... dxc3 {[%clk 0:02:21.7]} 13. Qxc3 {[%clk 0:01:59.9]} 13... O-O {[%clk
0:02:22]} 14. Nf3 {[%clk 0:01:56]} 14... Ne4 {[%clk 0:02:21.6]} 15. Qd4 {[%clk
0:01:56.3]} 15... Qa5+ {[%clk 0:02:20.5]} 16. b4 {[%clk 0:01:56.4]} 16... Qa3
{[%clk 0:02:18]} 17. Nd1 {[%clk 0:01:42]} 17... Bf5 {[%clk 0:02:10.6]} 18. Qb2
{[%clk 0:01:34.3]} 18... Nc6 {[%clk 0:01:55.7]} 19. Qxa3 {[%clk 0:01:08]} 19...
Rxa3 {[%clk 0:01:56.6]} 20. e3 {[%clk 0:01:05.5]} 20... Nxb4 {[%clk 0:01:56]}
21. Nd4 {[%clk 0:01:06.2]} 21... Rd8 {[%clk 0:01:52.1]} 22. Rb1 {[%clk
0:00:55.7]} 22... Rxd4 {[%clk 0:01:45.2]} 23. exd4 {[%clk 0:00:56]} 23... Nc2+
{[%clk 0:01:43.1]} 24. Ke2 {[%clk 0:00:56.1]} 24... Nxd4+ {[%clk 0:01:43.5]} 25.
Ke1 {[%clk 0:00:56.9]} 25... Nc2+ {[%clk 0:01:09.6]} 26. Ke2 {[%clk 0:00:57]}
26... Be6 {[%clk 0:01:02]} 27. Ne3 {[%clk 0:00:34.8]} 27... Nc3+ {[%clk
0:00:49.7]} 28. Kd2 {[%clk 0:00:29.9]} 28... Nxe3 {[%clk 0:00:46.9]} 29. Rb2
{[%clk 0:00:23.7]} 29... Ne4+ {[%clk 0:00:44.2]} 30. Ke1 {[%clk 0:00:21.7]}
30... Nxf1 {[%clk 0:00:33.8]} 31. Rxf1 {[%clk 0:00:21.8]} 31... Bc4 {[%clk
0:00:32.8]} 32. Rg1 {[%clk 0:00:20.5]} 32... Rc3 {[%clk 0:00:32.4]} 33. Kd1
{[%clk 0:00:14.9]} 33... h5 {[%clk 0:00:24.1]} 34. f3 {[%clk 0:00:14.9]} 34...
Nc5 {[%clk 0:00:24.2]} 35. Re1 {[%clk 0:00:14.8]} 35... Nd3 {[%clk 0:00:23.2]}
36. Re8+ {[%clk 0:00:15.3]} 36... Kh7 {[%clk 0:00:23.9]} 37. Rc2 {[%clk
0:00:15.9]} 37... Ra3 {[%clk 0:00:23.6]} 38. Rb8 {[%clk 0:00:13.9]} 38... Nb4
{[%clk 0:00:23.6]} 39. Rxc4 {[%clk 0:00:12.5]} 39... bxc4 {[%clk 0:00:20.2]} 40.
Rxb4 {[%clk 0:00:13.2]} 40... Rxa2 {[%clk 0:00:20.8]} 41. Rxc4 {[%clk
0:00:13.3]} 41... Rxg2 {[%clk 0:00:21.1]} 42. h4 {[%clk 0:00:14]} 42... Rf2
{[%clk 0:00:21.2]} 43. Rf4 {[%clk 0:00:14.3]} 43... Kg6 {[%clk 0:00:19.7]} 44.
Ke1 {[%clk 0:00:15]} 44... Rh2 {[%clk 0:00:19.9]} 45. Kf1 {[%clk 0:00:15]} 45...
Ra2 {[%clk 0:00:19.5]} 46. Kg1 {[%clk 0:00:15.6]} 46... f6 {[%clk 0:00:19.7]}
47. Rb4 {[%clk 0:00:16]} 47... Kh6 {[%clk 0:00:20.3]} 48. Rb6 {[%clk 0:00:15.9]}
48... Ra4 {[%clk 0:00:19.5]} 49. Kg2 {[%clk 0:00:15.6]} 49... Rxh4 {[%clk
0:00:19.7]} 50. Kg3 {[%clk 0:00:16.3]} 50... Ra4 {[%clk 0:00:20.4]} 51. Rb5
{[%clk 0:00:16.3]} 51... g6 {[%clk 0:00:19.9]} 52. Rb6 {[%clk 0:00:15.9]} 52...
f5 {[%clk 0:00:20.6]} 53. f4 {[%clk 0:00:15.4]} 53... Ra3+ {[%clk 0:00:20.6]}
54. Kg2 {[%clk 0:00:14.1]} 54... h4 {[%clk 0:00:19.8]} 55. Rd6 {[%clk 0:00:11]}
55... Kh5 {[%clk 0:00:20.1]} 56. Rc6 {[%clk 0:00:10.6]} 56... Rg3+ {[%clk
0:00:20]} 57. Kh2 {[%clk 0:00:10.9]} 57... Ra3 {[%clk 0:00:20.7]} 58. Kg2 {[%clk
0:00:11]} 58... Ra2+ {[%clk 0:00:16.1]} 59. Kh3 {[%clk 0:00:10.7]} 59... Rb2
{[%clk 0:00:12.9]} 60. Rd6 {[%clk 0:00:10.9]} 60... Rb3+ {[%clk 0:00:13.1]} 61.
Kg2 {[%clk 0:00:10.8]} 61... Rg3+ {[%clk 0:00:13.6]} 62. Kh2 {[%clk 0:00:11.4]}
62... Rg4 {[%clk 0:00:14.2]} 63. Rd4 {[%clk 0:00:08.9]} 63... g5 {[%clk
0:00:14.6]} 0-1

[Event "Late-Titled-Tuesday-Blitz-February-06-2024"]
[Site "Chess.com"]
[Date "2024.02.06"]
[Round "3"]
[White "AsterPhoenix"]
[Black "Zhigalko_Sergei"]
[Result "1/2-1/2"]
[WhiteElo "2624"]
[BlackElo "2941"]
[TimeControl "180+1"]
[EndTime "14:30:17 PST"]
[Termination "Game drawn by repetition"]

1. e4 {[%clk 0:03:00.9]} 1... c5 {[%clk 0:02:59.5]} 2. Nf3 {[%clk 0:02:58.8]}
2... Nc6 {[%clk 0:03:00.1]} 3. d4 {[%clk 0:02:57.5]} 3... cxd4 {[%clk 0:03:01]}
4. Nxd4 {[%clk 0:02:58.4]} 4... Nf6 {[%clk 0:03:01.5]} 5. Nc3 {[%clk 0:02:58.8]}
5... e5 {[%clk 0:03:01.8]} 6. Ndb5 {[%clk 0:02:59.1]} 6... d6 {[%clk 0:03:02.3]}
7. Bg5 {[%clk 0:02:58.6]} 7... a6 {[%clk 0:03:02.5]} 8. Na3 {[%clk 0:02:58.6]}
8... b5 {[%clk 0:03:03.1]} 9. Nd5 {[%clk 0:02:58.1]} 9... Be7 {[%clk 0:03:03.6]}
10. Bxf6 {[%clk 0:02:58.4]} 10... Bxf6 {[%clk 0:03:04.5]} 11. c4 {[%clk
0:02:59]} 11... b4 {[%clk 0:03:04.7]} 12. Nc2 {[%clk 0:02:59.6]} 12... O-O
{[%clk 0:03:05.2]} 13. g3 {[%clk 0:02:51.1]} 13... a5 {[%clk 0:03:03.8]} 14. h4
{[%clk 0:02:50.9]} 14... Be6 {[%clk 0:02:50.2]} 15. Bh3 {[%clk 0:02:50.1]} 15...
a4 {[%clk 0:02:47.1]} 16. b3 {[%clk 0:02:30.8]} 16... Nd4 {[%clk 0:02:09.3]} 17.
Nxd4 {[%clk 0:02:26.1]} 17... exd4 {[%clk 0:02:09.3]} 18. Bxe6 {[%clk
0:01:45.4]} 18... fxe6 {[%clk 0:02:09]} 19. Nf4 {[%clk 0:01:46]} 19... Qe8
{[%clk 0:01:47]} 20. Nd3 {[%clk 0:01:41]} 20... Qg6 {[%clk 0:01:42.1]} 21. Qe2
{[%clk 0:01:38.5]} 21... axb3 {[%clk 0:01:41.7]} 22. h5 {[%clk 0:01:28.4]} 22...
Qg5 {[%clk 0:01:28.1]} 23. O-O {[%clk 0:01:16.9]} 23... bxa2 {[%clk 0:00:22.8]}
24. Rxa2 {[%clk 0:01:17]} 24... Rxa2 {[%clk 0:00:21.1]} 25. Qxa2 {[%clk
0:01:17.9]} 25... Qxh5 {[%clk 0:00:19.2]} 26. Nxb4 {[%clk 0:01:05.8]} 26... Be5
{[%clk 0:00:15.8]} 27. c5 {[%clk 0:00:56]} 27... dxc5 {[%clk 0:00:14.8]} 28.
Qxe6+ {[%clk 0:00:54.8]} 28... Kh8 {[%clk 0:00:15.1]} 29. Nd3 {[%clk 0:00:54.6]}
29... Bb8 {[%clk 0:00:08.5]} 30. Qe7 {[%clk 0:00:42.9]} 30... Re8 {[%clk
0:00:04.9]} 31. Qxc5 {[%clk 0:00:40.7]} 31... Qxc5 {[%clk 0:00:04.2]} 32. Nxc5
{[%clk 0:00:41.6]} 32... Ba7 {[%clk 0:00:02.6]} 33. Rc1 {[%clk 0:00:29.1]} 33...
h6 {[%clk 0:00:02.9]} 34. Kg2 {[%clk 0:00:21.1]} 34... Bxc5 {[%clk 0:00:01.8]}
35. Rxc5 {[%clk 0:00:20.9]} 35... Rxe4 {[%clk 0:00:02.5]} 36. Rd5 {[%clk
0:00:21.2]} 36... Kh7 {[%clk 0:00:01.7]} 37. Rd6 {[%clk 0:00:21.2]} 37... Re5
{[%clk 0:00:01.6]} 38. Rxd4 {[%clk 0:00:21.1]} 38... Rf5 {[%clk 0:00:02.1]} 39.
g4 {[%clk 0:00:20.7]} 39... Rf6 {[%clk 0:00:02.6]} 40. f3 {[%clk 0:00:21.2]}
40... Rg6 {[%clk 0:00:03.2]} 41. Kg3 {[%clk 0:00:21.8]} 41... Ra6 {[%clk
0:00:03.6]} 42. Rd5 {[%clk 0:00:21.8]} 42... Kg6 {[%clk 0:00:04]} 43. Re5 {[%clk
0:00:21.8]} 43... Rb6 {[%clk 0:00:04.1]} 44. Rd5 {[%clk 0:00:21.9]} 44... Re6
{[%clk 0:00:01.7]} 45. Rc5 {[%clk 0:00:21.9]} 45... Kf6 {[%clk 0:00:02]} 46.
Rf5+ {[%clk 0:00:21.9]} 46... Ke7 {[%clk 0:00:02.3]} 47. Rf4 {[%clk 0:00:22.6]}
47... g6 {[%clk 0:00:02.4]} 48. Ra4 {[%clk 0:00:22.3]} 48... Kf6 {[%clk
0:00:02.9]} 49. Ra5 {[%clk 0:00:22.4]} 49... Re5 {[%clk 0:00:02.6]} 50. Ra6+
{[%clk 0:00:21.8]} 50... Re6 {[%clk 0:00:03.1]} 51. Ra5 {[%clk 0:00:22.2]} 51...
Re7 {[%clk 0:00:02.7]} 52. Ra6+ {[%clk 0:00:22.4]} 52... Kg7 {[%clk 0:00:03.1]}
53. Rb6 {[%clk 0:00:21.4]} 53... Rf7 {[%clk 0:00:03.6]} 54. Ra6 {[%clk
0:00:21.5]} 54... Rf6 {[%clk 0:00:04.2]} 55. Ra7+ {[%clk 0:00:21.5]} 55... Rf7
{[%clk 0:00:04.4]} 56. Ra6 {[%clk 0:00:22]} 56... g5 {[%clk 0:00:04.5]} 57. Rb6
{[%clk 0:00:22]} 57... Rf6 {[%clk 0:00:04.9]} 58. Rb7+ {[%clk 0:00:22]} 58...
Kg6 {[%clk 0:00:05.1]} 59. Rc7 {[%clk 0:00:22.3]} 59... h5 {[%clk 0:00:05.5]}
60. gxh5+ {[%clk 0:00:22]} 60... Kxh5 {[%clk 0:00:06.4]} 61. Rc5 {[%clk
0:00:21.6]} 61... Kg6 {[%clk 0:00:06.7]} 62. Rb5 {[%clk 0:00:21.8]} 62... Rf5
{[%clk 0:00:07]} 63. Rb6+ {[%clk 0:00:19.8]} 63... Rf6 {[%clk 0:00:07.1]} 64.
Rb5 {[%clk 0:00:20.3]} 64... Rf5 {[%clk 0:00:07.6]} 65. Rb6+ {[%clk 0:00:20.8]}
65... Rf6 {[%clk 0:00:08.1]} 66. Rb5 {[%clk 0:00:21.4]} 1/2-1/2

[Event "Late-Titled-Tuesday-Blitz-February-06-2024"]
[Site "Chess.com"]
[Date "2024.02.06"]
[Round "3"]
[White "balachess2006"]
[Black "FrenchMonster2002"]
[Result "1-0"]
[WhiteElo "2702"]
[BlackElo "2474"]
[TimeControl "180+1"]
[EndTime "14:30:17 PST"]
[Termination "balachess2006 won on time"]

1. c4 {[%clk 0:03:00.9]} 1... Nf6 {[%clk 0:02:59.5]} 2. Nf3 {[%clk 0:03:00.2]}
2... g6 {[%clk 0:03:00.1]} 3. d4 {[%clk 0:03:00.1]} 3... Bg7 {[%clk 0:03:00.8]}
4. g3 {[%clk 0:03:00.3]} 4... O-O {[%clk 0:03:01.1]} 5. Bg2 {[%clk 0:03:00.9]}
5... d6 {[%clk 0:03:01.9]} 6. Nc3 {[%clk 0:03:00.9]} 6... Nc6 {[%clk 0:03:02.5]}
7. O-O {[%clk 0:03:01.4]} 7... e5 {[%clk 0:03:03.2]} 8. dxe5 {[%clk 0:03:02.3]}
8... Nxe5 {[%clk 0:03:03.9]} 9. Nxe5 {[%clk 0:03:01.2]} 9... dxe5 {[%clk
0:03:04.8]} 10. Qxd8 {[%clk 0:03:00]} 10... Rxd8 {[%clk 0:03:05.7]} 11. Bg5
{[%clk 0:03:00.5]} 11... Rd4 {[%clk 0:03:06.4]} 12. Be3 {[%clk 0:02:59.6]} 12...
Rd7 {[%clk 0:03:05.9]} 13. h3 {[%clk 0:02:52.8]} 13... c6 {[%clk 0:03:02.9]} 14.
Na4 {[%clk 0:02:51]} 14... Rc7 {[%clk 0:02:55.1]} 15. Rfd1 {[%clk 0:02:41.2]}
15... Be6 {[%clk 0:02:54.9]} 16. b3 {[%clk 0:02:39.1]} 16... Nd7 {[%clk
0:02:48.2]} 17. Rd2 {[%clk 0:02:35.7]} 17... Bf8 {[%clk 0:02:46.3]} 18. Rad1
{[%clk 0:02:34.5]} 18... Bb4 {[%clk 0:02:38.6]} 19. Rc2 {[%clk 0:02:34.5]} 19...
Bf5 {[%clk 0:02:25.2]} 20. Rcc1 {[%clk 0:02:34.4]} 20... Ba3 {[%clk 0:02:23.6]}
21. Ra1 {[%clk 0:02:31]} 21... Kf8 {[%clk 0:02:02.9]} 22. g4 {[%clk 0:02:12.9]}
22... Be6 {[%clk 0:02:02.7]} 23. c5 {[%clk 0:02:09.8]} 23... f5 {[%clk
0:01:46.1]} 24. gxf5 {[%clk 0:02:06.3]} 24... gxf5 {[%clk 0:01:46]} 25. f4
{[%clk 0:02:06.4]} 25... e4 {[%clk 0:01:37.5]} 26. Bd4 {[%clk 0:02:01.7]} 26...
Ke7 {[%clk 0:01:20]} 27. e3 {[%clk 0:02:01.2]} 27... Bd5 {[%clk 0:01:09.7]} 28.
Kf2 {[%clk 0:01:59.3]} 28... Rcc8 {[%clk 0:00:58.3]} 29. Bf1 {[%clk 0:01:57.3]}
29... Rg8 {[%clk 0:00:53]} 30. Be2 {[%clk 0:01:57.1]} 30... Nf8 {[%clk
0:00:50.9]} 31. b4 {[%clk 0:01:19]} 31... Ne6 {[%clk 0:00:33.3]} 32. Bc3 {[%clk
0:01:18.8]} 32... a5 {[%clk 0:00:21.1]} 33. bxa5 {[%clk 0:01:11.9]} 33... Nxc5
{[%clk 0:00:16.4]} 34. Nb6 {[%clk 0:01:10.4]} 34... Rad8 {[%clk 0:00:16.6]} 35.
Nxd5+ {[%clk 0:01:07.5]} 35... Rxd5 {[%clk 0:00:16]} 36. Rxd5 {[%clk 0:01:06.9]}
36... cxd5 {[%clk 0:00:16.9]} 37. Rb1 {[%clk 0:01:05.8]} 37... Kd7 {[%clk
0:00:07.8]} 38. Bb5+ {[%clk 0:01:00.8]} 38... Kc8 {[%clk 0:00:08]} 39. Bd4
{[%clk 0:00:59]} 39... Kb8 {[%clk 0:00:04.9]} 40. a6 {[%clk 0:00:55.2]} 40... b6
{[%clk 0:00:01.9]} 41. Be2 {[%clk 0:00:47.2]} 41... Ka7 {[%clk 0:00:02.1]} 42.
h4 {[%clk 0:00:34.2]} 42... Rb8 {[%clk 0:00:02.3]} 43. h5 {[%clk 0:00:33.3]}
43... Ne6 {[%clk 0:00:02.3]} 44. Be5 {[%clk 0:00:33]} 44... Rc8 {[%clk
0:00:02.9]} 45. Bd1 {[%clk 0:00:30.7]} 45... Bc5 {[%clk 0:00:03]} 46. Bb3 {[%clk
0:00:30.3]} 46... Rd8 {[%clk 0:00:02.9]} 47. Rd1 {[%clk 0:00:29.4]} 47... Kxa6
{[%clk 0:00:02.7]} 48. Rxd5 {[%clk 0:00:28.1]} 48... Rxd5 {[%clk 0:00:02.1]} 49.
Bxd5 {[%clk 0:00:29]} 49... Nf8 {[%clk 0:00:01.3]} 50. Bg7 {[%clk 0:00:26.2]}
50... Kb5 {[%clk 0:00:01.5]} 51. Bg8 {[%clk 0:00:25]} 51... Ka4 {[%clk
0:00:01.7]} 52. Bxf8 {[%clk 0:00:24.7]} 52... Bxf8 {[%clk 0:00:02.3]} 53. Bxh7
{[%clk 0:00:25.6]} 53... Ka3 {[%clk 0:00:01.8]} 54. Bxf5 {[%clk 0:00:26]} 54...
Kxa2 {[%clk 0:00:02.3]} 55. Bxe4 {[%clk 0:00:26.7]} 55... b5 {[%clk 0:00:02.9]}
56. Bd5+ {[%clk 0:00:27]} 56... Kb2 {[%clk 0:00:03]} 57. Kf3 {[%clk 0:00:27.4]}
57... Kc3 {[%clk 0:00:03.6]} 58. Ke4 {[%clk 0:00:26.8]} 58... b4 {[%clk
0:00:04.1]} 59. Kf5 {[%clk 0:00:25.8]} 59... Kd3 {[%clk 0:00:04]} 60. e4 {[%clk
0:00:26.2]} 60... Kd4 {[%clk 0:00:04.2]} 61. Bf7 {[%clk 0:00:26]} 61... Bh6
{[%clk 0:00:03.3]} 62. e5 {[%clk 0:00:25]} 62... Bf8 {[%clk 0:00:03.6]} 63. Ba2
{[%clk 0:00:21.8]} 63... Ke3 {[%clk 0:00:02]} 64. e6 {[%clk 0:00:20.9]} 64...
Be7 {[%clk 0:00:01.5]} 65. h6 {[%clk 0:00:21]} 1-0

[Event "Late-Titled-Tuesday-Blitz-February-06-2024"]
[Site "Chess.com"]
[Date "2024.02.06"]
[Round "3"]
[White "youngdinousaur"]
[Black "IsaqueGoncalvesSanto"]
[Result "1-0"]
[WhiteElo "2329"]
[BlackElo "1931"]
[TimeControl "180+1"]
[EndTime "14:30:19 PST"]
[Termination "youngdinousaur won on time"]

1. d4 {[%clk 0:02:52.6]} 1... e6 {[%clk 0:03:00.9]} 2. Nf3 {[%clk 0:02:52.7]}
2... d5 {[%clk 0:03:00.7]} 3. Bf4 {[%clk 0:02:52.9]} 3... Nf6 {[%clk 0:02:58.6]}
4. e3 {[%clk 0:02:53.3]} 4... Bd6 {[%clk 0:02:57.2]} 5. Bg3 {[%clk 0:02:53.1]}
5... O-O {[%clk 0:02:53.6]} 6. Bd3 {[%clk 0:02:53.1]} 6... b6 {[%clk 0:02:47.5]}
7. c3 {[%clk 0:02:53.3]} 7... Bb7 {[%clk 0:02:46.5]} 8. Nbd2 {[%clk 0:02:52.6]}
8... Qe7 {[%clk 0:02:44.6]} 9. Ne5 {[%clk 0:02:43.7]} 9... Nbd7 {[%clk
0:02:40.1]} 10. f4 {[%clk 0:02:42.8]} 10... c5 {[%clk 0:02:37.2]} 11. Bh4 {[%clk
0:02:42]} 11... Qe8 {[%clk 0:02:17.2]} 12. g4 {[%clk 0:02:39.7]} 12... Ne4
{[%clk 0:02:13.2]} 13. Qf3 {[%clk 0:02:12.3]} 13... Nxd2 {[%clk 0:02:02.2]} 14.
Kxd2 {[%clk 0:02:11.8]} 14... f6 {[%clk 0:01:52.4]} 15. Nxd7 {[%clk 0:02:09.9]}
15... Qxd7 {[%clk 0:01:51.3]} 16. Rhg1 {[%clk 0:02:04.2]} 16... e5 {[%clk
0:01:46.6]} 17. Bf5 {[%clk 0:01:54.5]} 17... Qb5 {[%clk 0:01:37.6]} 18. b3
{[%clk 0:01:31.2]} 18... e4 {[%clk 0:01:34.2]} 19. Qe2 {[%clk 0:01:27.9]} 19...
Qxe2+ {[%clk 0:01:27.9]} 20. Kxe2 {[%clk 0:01:28.8]} 20... Kf7 {[%clk
0:01:07.2]} 21. g5 {[%clk 0:01:27.3]} 21... g6 {[%clk 0:01:04.7]} 22. Bh3 {[%clk
0:01:24.8]} 22... f5 {[%clk 0:01:03.8]} 23. Bf1 {[%clk 0:01:19.2]} 23... cxd4
{[%clk 0:01:00.5]} 24. cxd4 {[%clk 0:01:10.8]} 24... Rfc8 {[%clk 0:00:59.8]} 25.
Kd1 {[%clk 0:01:03.9]} 25... Rc3 {[%clk 0:00:57.5]} 26. Kd2 {[%clk 0:00:51.1]}
26... Rac8 {[%clk 0:00:55.1]} 27. Rg2 {[%clk 0:00:34.5]} 27... Bb4 {[%clk
0:00:46.6]} 28. Ke2 {[%clk 0:00:20.4]} 28... Rc2+ {[%clk 0:00:43.9]} 29. Kd1
{[%clk 0:00:20.4]} 29... R2c3 {[%clk 0:00:34.1]} 30. Re2 {[%clk 0:00:16.6]}
30... Ba6 {[%clk 0:00:30.3]} 31. Be1 {[%clk 0:00:16.5]} 31... Bxe2+ {[%clk
0:00:28.9]} 32. Bxe2 {[%clk 0:00:15.3]} 32... a5 {[%clk 0:00:12.8]} 33. Bxc3
{[%clk 0:00:14.1]} 33... Rxc3 {[%clk 0:00:11.8]} 34. Rc1 {[%clk 0:00:12.7]}
34... Ke7 {[%clk 0:00:11]} 35. Rxc3 {[%clk 0:00:11.8]} 35... Bxc3 {[%clk
0:00:11]} 36. Bb5 {[%clk 0:00:10.5]} 36... Kd6 {[%clk 0:00:09.1]} 37. h4 {[%clk
0:00:08.2]} 37... Bb4 {[%clk 0:00:08.1]} 38. h5 {[%clk 0:00:07.5]} 38... gxh5
{[%clk 0:00:06.8]} 39. Bf1 {[%clk 0:00:06.6]} 39... h4 {[%clk 0:00:06.3]} 40.
Bh3 {[%clk 0:00:06.4]} 40... Bc3 {[%clk 0:00:06.4]} 41. Ke2 {[%clk 0:00:06]}
41... Ke6 {[%clk 0:00:06.1]} 42. Kf2 {[%clk 0:00:05.4]} 42... Bd2 {[%clk
0:00:06.1]} 43. Ke2 {[%clk 0:00:05.8]} 43... Bc1 {[%clk 0:00:06.8]} 44. a4
{[%clk 0:00:05.8]} 44... Bb2 {[%clk 0:00:05.9]} 45. Kd2 {[%clk 0:00:05.8]} 45...
Ba3 {[%clk 0:00:05.1]} 46. Bg2 {[%clk 0:00:04.3]} 46... Bb4+ {[%clk 0:00:04.8]}
47. Ke2 {[%clk 0:00:04.9]} 47... Kf7 {[%clk 0:00:04.5]} 48. Kf2 {[%clk
0:00:05.4]} 48... Kg6 {[%clk 0:00:04.5]} 49. Bh3 {[%clk 0:00:04.6]} 49... Bd2
{[%clk 0:00:03.2]} 50. Bf1 {[%clk 0:00:04.8]} 50... Kh5 {[%clk 0:00:02.2]} 51.
Be2+ {[%clk 0:00:05.2]} 51... Kg6 {[%clk 0:00:01.8]} 52. Bb5 {[%clk 0:00:05.1]}
52... h6 {[%clk 0:00:01.1]} 53. Be8+ {[%clk 0:00:04.4]} 1-0

[Event "Late-Titled-Tuesday-Blitz-February-06-2024"]
[Site "Chess.com"]
[Date "2024.02.06"]
[Round "3"]
[White "GMBenjaminBok"]
[Black "Ticondriul"]
[Result "1-0"]
[WhiteElo "2991"]
[BlackElo "2720"]
[TimeControl "180+1"]
[EndTime "14:30:21 PST"]
[Termination "GMBenjaminBok won by resignation"]

1. d4 {[%clk 0:03:00.9]} 1... Nf6 {[%clk 0:02:55.6]} 2. c4 {[%clk 0:02:59.5]}
2... e6 {[%clk 0:02:54.7]} 3. Nc3 {[%clk 0:02:59.7]} 3... Bb4 {[%clk 0:02:54.3]}
4. Qc2 {[%clk 0:02:59.7]} 4... b6 {[%clk 0:02:50.7]} 5. e4 {[%clk 0:02:57.8]}
5... c5 {[%clk 0:02:42.4]} 6. d5 {[%clk 0:02:56.9]} 6... exd5 {[%clk 0:02:42.5]}
7. exd5 {[%clk 0:02:57.8]} 7... Qe7+ {[%clk 0:02:42.4]} 8. Ne2 {[%clk
0:02:48.3]} 8... d6 {[%clk 0:02:37.5]} 9. Bg5 {[%clk 0:02:45.8]} 9... h6 {[%clk
0:02:28.2]} 10. Bh4 {[%clk 0:02:45.5]} 10... O-O {[%clk 0:02:26.8]} 11. O-O-O
{[%clk 0:02:44.7]} 11... a6 {[%clk 0:02:25.9]} 12. Kb1 {[%clk 0:02:26.4]} 12...
b5 {[%clk 0:02:11.8]} 13. a3 {[%clk 0:02:13]} 13... Ba5 {[%clk 0:02:09.3]} 14.
cxb5 {[%clk 0:02:12.4]} 14... axb5 {[%clk 0:02:08.9]} 15. Nxb5 {[%clk
0:02:13.3]} 15... g5 {[%clk 0:02:00]} 16. Bg3 {[%clk 0:02:12.5]} 16... Ne4
{[%clk 0:01:41.3]} 17. f3 {[%clk 0:01:54.1]} 17... Bf5 {[%clk 0:01:40.9]} 18.
fxe4 {[%clk 0:01:49.1]} 18... Bxe4 {[%clk 0:01:41]} 19. Rd3 {[%clk 0:01:49.2]}
19... Ra6 {[%clk 0:01:31.8]} 20. Nec3 {[%clk 0:01:44.1]} 20... Bg6 {[%clk
0:01:30.8]} 21. Ka2 {[%clk 0:01:37.3]} 21... c4 {[%clk 0:01:27.9]} 22. h4 {[%clk
0:01:18.6]} 22... Nd7 {[%clk 0:01:08]} 23. hxg5 {[%clk 0:01:14.1]} 23... hxg5
{[%clk 0:01:07.5]} 24. Qd1 {[%clk 0:00:56.2]} 24... cxd3 {[%clk 0:01:06.4]} 25.
Bxd3 {[%clk 0:00:56.5]} 25... Nc5 {[%clk 0:00:52.8]} 26. Bxg6 {[%clk 0:00:50.5]}
26... fxg6 {[%clk 0:00:53.1]} 27. Qd4 {[%clk 0:00:38.2]} 27... Qf6 {[%clk
0:00:41.2]} 28. Qg4 {[%clk 0:00:24.5]} 28... Bxc3 {[%clk 0:00:35.3]} 29. Nxc3
{[%clk 0:00:21.1]} 29... Rb8 {[%clk 0:00:13.5]} 30. Qc4 {[%clk 0:00:16.6]} 30...
Rab6 {[%clk 0:00:13.1]} 31. b4 {[%clk 0:00:15.4]} 31... Na6 {[%clk 0:00:12.5]}
32. Rf1 {[%clk 0:00:13.8]} 32... Qg7 {[%clk 0:00:11.4]} 33. Rb1 {[%clk
0:00:02.8]} 33... Qa7 {[%clk 0:00:06.3]} 34. Kb2 {[%clk 0:00:02.1]} 34... Nxb4
{[%clk 0:00:06.4]} 35. Kc1 {[%clk 0:00:02.6]} 35... Qxa3+ {[%clk 0:00:03.9]} 36.
Kd1 {[%clk 0:00:03.2]} 36... Nxd5 {[%clk 0:00:02.1]} 37. Qxd5+ {[%clk 0:00:03]}
37... Kg7 {[%clk 0:00:02.3]} 38. Qd4+ {[%clk 0:00:02.8]} 38... Kf7 {[%clk
0:00:01.6]} 39. Rxb6 {[%clk 0:00:03.2]} 39... Rxb6 {[%clk 0:00:02.2]} 40. Qxb6
{[%clk 0:00:03]} 40... Qxc3 {[%clk 0:00:02.8]} 41. Qb7+ {[%clk 0:00:03]} 41...
Ke6 {[%clk 0:00:02.8]} 42. Qe4+ {[%clk 0:00:03]} 42... Kf6 {[%clk 0:00:02.8]}
43. Bxd6 {[%clk 0:00:02.5]} 43... Qb3+ {[%clk 0:00:02.8]} 44. Ke1 {[%clk
0:00:02.6]} 44... Qc3+ {[%clk 0:00:02]} 45. Kf1 {[%clk 0:00:02.9]} 45... Qc1+
{[%clk 0:00:01.9]} 46. Qe1 {[%clk 0:00:03]} 46... Qc4+ {[%clk 0:00:01.4]} 47.
Qe2 {[%clk 0:00:03.5]} 47... Qd5 {[%clk 0:00:01.6]} 48. Qf2+ {[%clk 0:00:02.5]}
48... Kg7 {[%clk 0:00:01.7]} 49. Bg3 {[%clk 0:00:02.2]} 49... Qf5 {[%clk
0:00:01.9]} 50. Kg1 {[%clk 0:00:01.5]} 50... Kh6 {[%clk 0:00:02]} 51. Kh2 {[%clk
0:00:01.6]} 51... Kh5 {[%clk 0:00:02.2]} 52. Qe2+ {[%clk 0:00:01.8]} 52... Kh6
{[%clk 0:00:01.8]} 53. Bf2 {[%clk 0:00:02.4]} 53... g4 {[%clk 0:00:02.2]} 54.
Qe3+ {[%clk 0:00:02.3]} 54... g5 {[%clk 0:00:02.4]} 55. Bg3 {[%clk 0:00:02.6]}
55... Kh5 {[%clk 0:00:02.9]} 56. Qe8+ {[%clk 0:00:02.6]} 56... Qg6 {[%clk
0:00:03.8]} 57. Qxg6+ {[%clk 0:00:02.8]} 57... Kxg6 {[%clk 0:00:04.5]} 58. Kg1
{[%clk 0:00:03.7]} 58... Kf5 {[%clk 0:00:05.4]} 59. Be1 {[%clk 0:00:04]} 59...
Ke4 {[%clk 0:00:06.3]} 60. Kf2 {[%clk 0:00:04.5]} 60... Kf4 {[%clk 0:00:03.8]}
61. Bd2+ {[%clk 0:00:04.6]} 1-0